fUSD/lending_fUSD_20250901
["ID","MTS","AMOUNT","RATE_DAILY","PERIOD"]
[382628406,1756686640890,-10910.9716376,0.00036796,4]
[382628407,1756686640900,-1000.0,0.000368,7]
[382628408,1756686640909,-1000.0,0.000368,7]
[382628409,1756686640918,-1000.0,0.000368,7]
[382628410,1756686640929,-1000.0,0.000368,7]
[382628412,1756686640938,-1000.0,0.000368,7]
[382628414,1756686640947,-1000.0,0.000368,7]
[382628416,1756686640957,-410.07642527,0.000368,7]
[382628417,1756686640966,-6954.9802,0.00036806,2]
[382628419,1756686640976,-231.3933,0.00036806,2]
[382628420,1756686640985,-276.2097,0.00036806,2]
[382628421,1756686640995,-4019.4225,0.00036806,2]
[382628422,1756686641004,-1409.6415,0.00036806,2]
[382628423,1756686641013,-9390.42480249,0.00036886,4]
[382628424,1756686641022,-153.76,0.00036886,2]
[382628425,1756686641032,-219.44573745,0.00036886,2]
[382628426,1756686641041,-166.51,0.00036894,2]
[382628427,1756686641051,-17633.67356618,0.00036896,2]
[382628428,1756686641060,-21821.9432753,0.00036896,4]
[382628429,1756686641070,-18780.849605,0.00036896,4]
[382628430,1756686641079,-1720.22423053,0.00036905,2]
[382628431,1756686641089,-1081.08398412,0.00036913,9]
[382628432,1756686641098,-839.0,0.0003694,2]
[382628433,1756686641108,-150.0,0.00036977,120]
[382628434,1756686641118,-162.27839024,0.00037,2]
[382628435,1756686641127,-10246.0333419,0.00037,30]
[382628436,1756686641136,-504.86720889,0.00037096,5]
[382628437,1756686641146,-151.0,0.00037124,2]
[382628438,1756686641156,-1500.0,0.00037216,5]
[382628439,1756686641165,-770.15628271,0.00037255,2]
[382628440,1756686641174,-770.15628271,0.00037295,2]
[382628441,1756686641185,-1000.0,0.00037297,2]
[382628442,1756686641195,-1402.80622355,0.00037397,2]
[382628443,1756686641205,-160.0,0.00037397,2]
[382628444,1756686641213,-287.61899177,0.00037397,2]
[382628445,1756686641223,-334.5472959,0.00037397,2]
[382628446,1756686641233,-200.0,0.000374,30]
[382628447,1756686641243,-370.46,0.0003747,2]
[382628448,1756686641252,-7030.7793607,0.000375,50]
[382628449,1756686641262,-1959.78,0.000375,14]
[382628450,1756686641273,-337.719355,0.00037573,60]
[382628451,1756686641283,-151.0,0.00037672,2]
[382628452,1756686641292,-770.15628273,0.00037677,2]
[382628453,1756686641302,-10910.9716376,0.00037679,4]
[382628454,1756686641312,-1000.0,0.00037681,7]
[382628455,1756686641323,-9390.42480249,0.00037682,4]
[382628456,1756686641332,-1425.0,0.00037692,2]
[382628457,1756686641341,-1011.0,0.000377,7]
[382628458,1756686641353,-337.719355,0.00037725,2]
[382628459,1756686641362,-1425.0,0.00037733,2]
[382628460,1756686641372,-1425.0,0.00037741,2]
[382628461,1756686641383,-1000.0,0.00037747,7]
[382628462,1756686641392,-1000.0,0.00037755,7]
[382628463,1756686641402,-1425.0,0.00037755,2]
[382628464,1756686641412,-1425.0,0.00037756,2]
[382628465,1756686641423,-1425.0,0.00037757,2]
[382628466,1756686641432,-2000.0,0.00037764,5]
[382628467,1756686641441,-150.0,0.00037772,7]
[382628468,1756686641451,-150.0,0.00037772,7]
[382628469,1756686641460,-150.0,0.00037788,2]
[382628470,1756686641470,-21821.9432753,0.00037792,4]
[382628471,1756686641479,-18780.849605,0.00037792,4]
[382628472,1756686641488,-9390.42480249,0.00037793,4]
[382628473,1756686641498,-1000.0,0.000378,7]
[382628474,1756686641507,-34621.5733,0.00037802,2]
[382628475,1756686641527,-1153.3477,0.00037802,2]
[382628476,1756686641538,-404.87553305,0.00037802,2]
[382628477,1756686641547,-2302.4922938,0.00037803,2]
[382628478,1756686641556,-5000.0,0.00037803,2]
[382628479,1756686641565,-1000.0,0.00037803,2]
[382628480,1756686641574,-269.1095,0.00037803,2]
[382628481,1756686641583,-2500.0,0.00037803,2]
[382628482,1756686641592,-537.24036312,0.00037803,2]
[382628483,1756686641601,-404.87553303,0.00037803,2]
[382628484,1756686641611,-404.87553303,0.00037804,2]
[382628485,1756686641621,-150.0,0.00037805,2]
[382628486,1756686641632,-404.87553303,0.00037806,2]
[382628487,1756686641642,-404.87553303,0.00037807,2]
[382628488,1756686641653,-537.2403631,0.00037808,2]
[382628489,1756686641663,-404.87553303,0.00037808,2]
[382628490,1756686641674,-404.87553303,0.00037809,2]
[382628491,1756686641685,-404.87553303,0.00037811,2]
[382628492,1756686641695,-404.87553303,0.00037812,2]
[382628493,1756686641705,-155.3461138,0.00037813,11]
[382628494,1756686641715,-404.87553303,0.00037813,2]
[382628495,1756686641725,-164.8614987,0.00037813,2]
[382628496,1756686641735,-337.72045251,0.00037813,2]
[382628497,1756686641745,-773.77489271,0.00037813,2]
[382628498,1756686641755,-623.43003344,0.00037813,2]
[382628499,1756686641765,-537.2403631,0.00037813,2]
[382628500,1756686641775,-155.3461138,0.00037814,11]
[382628501,1756686641785,-211.76790605,0.00037814,81]
[382628502,1756686641795,-216.05576754,0.00037814,2]
[382628503,1756686641805,-155.3461138,0.00037814,11]
[382628504,1756686641814,-10910.9716376,0.00037823,4]
[382628505,1756686641824,-1000.0,0.00037833,7]
[382628506,1756686641834,-1000.0,0.00037837,7]
[382628507,1756686641843,-2896.55503,0.0003784,2]
[382628508,1756686641853,-1425.0,0.00037846,2]
[382628509,1756686641863,-1000.0,0.00037854,7]
[382628510,1756686641874,-1425.0,0.00037856,2]
[382628511,1756686641886,-150.0,0.00037868,7]
[382628512,1756686641897,-150.0,0.00037868,2]
[382628513,1756686641908,-1425.0,0.00037868,2]
[382628514,1756686641919,-150.0,0.00037873,5]
[382628515,1756686641930,-155.20951842,0.00037873,5]
[382628516,1756686641940,-1000.0,0.00037875,7]
[382628517,1756686641949,-150.0,0.00037877,2]
[382628518,1756686641959,-9390.42480249,0.00037881,4]
[382628519,1756686641970,-153.76,0.00037883,2]
[382628520,1756686641981,-153.76,0.00037883,2]
[382628521,1756686641992,-1240.28151938,0.00037884,2]
[382628522,1756686642002,-150.0,0.00037888,7]
[382628523,1756686642012,-2500.0,0.00037891,7]
[382628524,1756686642023,-21821.9432753,0.00037892,4]
[382628525,1756686642033,-18780.849605,0.00037892,4]
[382628526,1756686642044,-196397.489478,0.00037893,4]
[382628527,1756686642054,-422569.116112,0.00037893,4]
[382628528,1756686642065,-153.76,0.00037893,2]
[382628529,1756686642075,-153.76,0.00037893,2]
[382628530,1756686642086,-150.0,0.00037899,2]
[382628531,1756686642097,-1389.73650416,0.000379,120]
[382628532,1756686642107,-2500.0,0.000379,7]
[382628533,1756686642117,-150.0,0.000379,7]
[382628534,1756686642126,-1533.44,0.00037902,120]
[382628535,1756686642136,-1533.44,0.00037902,120]
[382628536,1756686642302,-1533.44,0.00037902,120]
[382628537,1756686642312,-1533.44,0.00037902,120]
[382628538,1756686642322,-1533.44,0.00037902,120]
[382628539,1756686642332,-1533.44,0.00037902,120]
[382628540,1756686642342,-1533.44,0.00037902,120]
[382628541,1756686642351,-1533.44,0.00037902,120]
[382628542,1756686642361,-1533.44,0.00037902,120]
[382628543,1756686642370,-1533.44,0.00037902,120]
[382628544,1756686642379,-1533.44,0.00037902,120]
[382628545,1756686642389,-1533.44,0.00037902,120]
[382628546,1756686642398,-1533.44,0.00037902,120]
[382628547,1756686642408,-1533.44,0.00037902,120]
[382628548,1756686642417,-1533.44,0.00037902,120]
[382628549,1756686642428,-1533.44,0.00037902,120]
[382628550,1756686642438,-1533.44,0.00037902,120]
[382628551,1756686642448,-1533.44,0.00037902,120]
[382628552,1756686642458,-1533.44,0.00037902,120]
[382628553,1756686642467,-1533.44,0.00037902,120]
[382628554,1756686642477,-1533.44,0.00037902,120]
[382628555,1756686642486,-1533.44,0.00037902,120]
[382628556,1756686642497,-1533.44,0.00037902,120]
[382628557,1756686642506,-1533.64290464,0.00037902,120]
[382628558,1756686642515,-212.39410301,0.00037902,120]
[382628559,1756686642530,-3755.27946311,0.00037902,2]
[382628560,1756686642541,-150.0,0.00037902,2]
[382628561,1756686642550,-3876.0,0.00037902,5]
[382628562,1756686642560,-153.76,0.00037903,2]
[382628563,1756686642570,-153.76,0.00037903,2]
[382628564,1756686642580,-153.76,0.00037903,2]
[382628565,1756686642590,-153.76,0.00037903,2]
[382628566,1756686642600,-153.76,0.00037903,2]
[382628567,1756686642609,-153.76,0.00037903,2]
[382628568,1756686642619,-153.76,0.00037903,2]
[382628569,1756686642631,-153.76,0.00037903,2]
[382628570,1756686642642,-153.76,0.00037903,2]
[382628571,1756686642652,-153.76,0.00037903,2]
[382628572,1756686642662,-153.76,0.00037903,2]
[382628573,1756686642672,-351788.83682759,0.00037903,2]
[382628574,1756686642683,-4140.8006865,0.00037909,2]
[382628575,1756686642692,-150.0,0.00037911,2]
[382628576,1756686642702,-150.0,0.00037911,2]
[382628577,1756686642713,-150.0,0.00037911,2]
[382628578,1756686642723,-1000.0,0.00037911,5]
[382628579,1756686642732,-150.0,0.00037911,2]
[382628580,1756686642743,-150.0,0.00037911,2]
[382628581,1756686642752,-202.08657554,0.00037911,14]
[382628582,1756686642762,-300.0,0.00037912,10]
[382628583,1756686642772,-173.97651528,0.00037912,10]
[382628584,1756686642782,-300.0,0.00037912,10]
[382628585,1756686642792,-150.0,0.00037912,20]
[382628586,1756686642802,-782.96152915,0.00037913,2]
[382628587,1756686642812,-782.96152915,0.00037913,2]
[382628588,1756686642822,-333837.34700697,0.00037913,2]
[382628590,1756686642832,-15053.90263981,0.00037913,3]
[382628591,1756686642841,-465.94134451,0.00037913,2]
[382628592,1756686642851,-215051.92029277,0.00037913,2]
[382628593,1756686642860,-3275.59461747,0.00037913,2]
[382628594,1756686642870,-156.37472653,0.00037913,2]
[382628595,1756686642880,-177.26654733,0.00037913,2]
[382628596,1756686642889,-171.35008786,0.00037913,2]
[382628597,1756686642899,-4085.3314736,0.00037913,2]
[382628598,1756686642908,-4036545.94261947,0.00037913,30]
[382628603,1756686643000,-395.94339629,0.00037913,30]
[382628617,1756686644104,-250.43,0.0002401,2]
[382628618,1756686644113,-250.43,0.00025821,7]
[382628619,1756686644125,-479.90745934,0.00029271,15]
[382628620,1756686644134,-6934663.16056363,0.00037913,30]
[382628621,1756686644165,-17500.00000002,0.00037913,30]
[382628622,1756686644295,-24861.63294852,0.00037913,30]
[382628623,1756686644321,-50627.66363568,0.00037913,30]
[382628624,1756686644332,-35088.7994,0.00037913,30]
[382628625,1756686644409,-250.43,0.00027549,7]
[382628626,1756686644419,-826.36083752,0.00037913,30]
[382628627,1756686644430,-5314.06538662,0.00037913,30]
[382628628,1756686644454,-1728.62035449,0.00037913,30]
[382628629,1756686644465,-18241.95810494,0.00037913,30]
[382628630,1756686645713,-250.43,0.00029276,30]
[382628631,1756686645723,-250.43,0.00031004,30]
[382628632,1756686645733,-250.43,0.00032731,30]
[382628633,1756686645742,-179.35559284,0.00034458,30]
[382628634,1756686645761,-71.07440716,0.00034458,30]
[382628635,1756686645771,-250.43,0.00036186,60]
[382628636,1756686645781,-14.15136556,0.00037913,30]
[382628637,1756686645792,-108000.22100671,0.00037913,30]
[382628638,1756686645803,-107411.02627393,0.00037913,30]
[382628645,1756686648461,-212.39410301,0.0002488,7]
[382628646,1756686648470,-212.39410301,0.0002509,3]
[382628647,1756686648480,-479.90745934,0.00030695,15]
[382628648,1756686648490,-2408.70509248,0.00037913,30]
[382628649,1756686648507,-669.34742379,0.00037913,30]
[382628650,1756686648519,-689.45001204,0.00037913,30]
[382628656,1756686724824,1000.0,0.0002761,120]
[382628657,1756686724904,1000.0,0.00027916,120]
[382628676,1756686841676,1000.0,0.00019986,120]
[382628677,1756686841822,1000.0,0.00021635,120]
[382628679,1756686843731,300.0,0.00019986,120]
[382628682,1756686910059,250.0,0.00015,2]
[382628683,1756686962601,1000.0,0.00019986,120]
[382628684,1756686962743,1000.0,0.00019078,120]
[382628685,1756686964888,251.0,0.00019986,120]
[382628686,1756686965078,251.0,0.00019078,120]
[382628691,1756687083088,1000.0,0.00019986,120]
[382628692,1756687083215,1000.0,0.00019078,120]
[382628704,1756687179859,156.76,0.00013699,2]
[382628708,1756687204769,1000.0,0.00019986,120]
[382628709,1756687204914,1000.0,0.00022098,120]
[382628775,1756687324793,1000.0,0.00019986,120]
[382628776,1756687324959,1000.0,0.00022048,120]
[382628818,1756687423958,-300.0,0.00018168,2]
[382628819,1756687423984,-153.46,0.00018169,2]
[382628820,1756687424013,-74546.54,0.00018169,2]
[382628822,1756687442697,1000.0,0.00019986,3]
[382628823,1756687442904,1000.0,0.00018945,3]
[382628840,1756687562053,1000.0,0.00019745,3]
[382628841,1756687562223,1000.0,0.00018059,3]
[382628843,1756687687371,1000.0,0.00019745,3]
[382628844,1756687687430,1000.0,0.00018054,3]
[382628846,1756687721716,160.0,0.00025,14]
[382628855,1756687806886,1000.0,0.00019864,3]
[382628856,1756687809657,1000.0,0.00018079,3]
[382628868,1756687832407,-160.23658609,0.0001795,2]
[382628869,1756687832417,-213.71900695,0.00018058,2]
[382628870,1756687832427,-116.49033468,0.000181,2]
[382628871,1756687832450,-97.22867227,0.000181,2]
[382628872,1756687832459,-1200.0,0.00018157,2]
[382628873,1756687832469,-151.0,0.00018158,2]
[382628874,1756687832479,-151.0,0.00018158,2]
[382628875,1756687832489,-151.0,0.00018158,2]
[382628876,1756687832499,-151.0,0.00018158,2]
[382628877,1756687832508,-151.0,0.00018158,2]
[382628878,1756687832517,-151.0,0.00018158,2]
[382628879,1756687832526,-151.0,0.00018158,2]
[382628880,1756687832535,-151.0,0.00018158,2]
[382628881,1756687832545,-151.0,0.00018158,2]
[382628882,1756687832555,-151.0,0.00018158,2]
[382628883,1756687832564,-151.0,0.00018158,2]
[382628884,1756687832574,-151.0,0.00018158,2]
[382628885,1756687832584,-151.0,0.00018158,2]
[382628886,1756687832595,-151.0,0.00018158,2]
[382628887,1756687832606,-151.0,0.00018158,2]
[382628888,1756687832617,-151.0,0.00018158,2]
[382628889,1756687832627,-151.0,0.00018158,2]
[382628890,1756687832637,-151.0,0.00018158,2]
[382628891,1756687832647,-151.0,0.00018158,2]
[382628892,1756687832656,-151.0,0.00018158,2]
[382628893,1756687832667,-2000.0,0.00018168,2]
[382628894,1756687832676,-2000.0,0.00018168,2]
[382628895,1756687832687,-1773.436,0.00018168,2]
[382628896,1756687832697,-1000.0,0.00018168,2]
[382628898,1756687832707,-1000.0,0.00018168,2]
[382628900,1756687832717,-1000.0,0.00018168,2]
[382628901,1756687832728,-1000.0,0.00018168,2]
[382628903,1756687832738,-1331.94410197,0.00018168,2]
[382628908,1756687832795,-668.05589803,0.00018168,2]
[382628910,1756687832805,-1720.22423053,0.00018168,2]
[382628911,1756687832815,-51053.37350482,0.00018169,2]
[382628912,1756687832824,-500.0,0.000182,2]
[382628913,1756687832834,-500.0,0.000182,2]
[382628914,1756687832844,-500.0,0.000182,2]
[382628915,1756687832853,-158.62835099,0.000182,2]
[382628916,1756687832863,-503.48138312,0.000182,2]
[382628917,1756687832873,-500.0,0.000182,2]
[382628918,1756687832882,-502.59649062,0.000182,2]
[382628919,1756687832892,-1000.0,0.00018748,2]
[382628920,1756687832901,-1000.0,0.00018748,2]
[382628921,1756687832911,-1000.0,0.00018748,2]
[382628922,1756687832921,-508.25419028,0.00019296,2]
[382628923,1756687832931,-500.0,0.00019296,2]
[382628924,1756687832940,-800.0,0.00019296,2]
[382628925,1756687832951,-250.0,0.00019745,2]
[382628926,1756687832960,-1680.0,0.00019906,2]
[382628927,1756687832969,-938.16243368,0.00021822,2]
[382628934,1756687838443,-1412.83756632,0.00021822,2]
[382628935,1756687838452,-72509.18355252,0.00023597,2]
[382628936,1756687838465,-3098.07580527,0.00023597,2]
[382628937,1756687838496,-62116.81566229,0.00023597,2]
[382628938,1756687838506,-3292.0,0.00023924,2]
[382628939,1756687838515,-574.7705637,0.00025827,8]
[382628940,1756687838524,-211.76790605,0.00025927,2]
[382628941,1756687838534,-666.0,0.0002599,3]
[382628942,1756687838543,-156.76,0.00026027,2]
[382628944,1756687838553,-3544.03,0.0002612,2]
[382628946,1756687838562,-949.0,0.00026227,2]
[382629000,1756687839044,-1546.49,0.0002748,2]
[382629002,1756687839054,-124814.0,0.000289,2]
[382629003,1756687839063,-160.0,0.00029306,7]
[382629005,1756687839073,-22628.673775,0.0002959,3]
[382629007,1756687839082,-410.07642527,0.0002959,3]
[382629009,1756687839092,-2201.51101534,0.0002959,3]
[382629011,1756687839103,-5512.0,0.000296,3]
[382629014,1756687839114,-6388.68,0.00029806,2]
[382629016,1756687839125,-5512.0,0.000303,5]
[382629018,1756687839135,-194.93,0.00030333,2]
[382629020,1756687839145,-22628.673775,0.00030358,3]
[382629022,1756687839155,-410.07642527,0.00030358,3]
[382629024,1756687839165,-2201.51101534,0.00030358,3]
[382629026,1756687839174,-26455.23886707,0.00030368,2]
[382629028,1756687839184,-15356.9579078,0.00030764,2]
[382629030,1756687839194,-160.0,0.00030843,2]
[382629032,1756687839203,-160.0,0.00030864,2]
[382629034,1756687839213,-873.87,0.00031092,28]
[382629036,1756687839223,-22628.673775,0.00031538,3]
[382629038,1756687839232,-15356.95790779,0.00031548,2]
[382629040,1756687839242,-15356.95790779,0.00032331,2]
[382629042,1756687839251,-1434.39,0.00033038,2]
[382629044,1756687839261,-150.99,0.00033038,30]
[382629046,1756687839271,-499.99,0.00033038,2]
[382629048,1756687839280,-999.99,0.00033038,2]
[382629050,1756687839290,-3158.44,0.00033038,2]
[382629052,1756687839300,-8202.34,0.00033038,2]
[382629054,1756687839309,-9999.99,0.00033038,2]
[382629056,1756687839319,-7691.47,0.00033038,20]
[382629058,1756687839328,-161676.72,0.00033038,10]
[382629060,1756687839337,-9205.89,0.00033038,2]
[382629062,1756687839347,-9999.99,0.00033038,2]
[382629064,1756687839356,-1153.46,0.00033038,2]
[382629066,1756687839365,-303.13,0.00033038,2]
[382629068,1756687839375,-150.99,0.00033038,2]
[382629070,1756687839384,-9973.39,0.00033038,2]
[382629072,1756687839394,-415.36,0.00033038,15]
[382629074,1756687839403,-9999.99,0.00033038,2]
[382629076,1756687839413,-1502.03,0.00033038,2]
[382629078,1756687839422,-9250.29,0.00033038,2]
[382629080,1756687839431,-1570.61,0.00033038,2]
[382629082,1756687839440,-2201.51101534,0.00033038,10]
[382629084,1756687839449,-164.88114955,0.00033073,5]
[382629086,1756687839459,-407.7358241,0.00033073,5]
[382629088,1756687839468,-500.0,0.00033073,5]
[382629090,1756687839478,-500.0,0.00033073,5]
[382629092,1756687839488,-500.0,0.00033073,5]
[382629094,1756687839497,-547.28383472,0.00033073,2]
[382629096,1756687839507,-500.0,0.00033073,5]
[382629098,1756687839521,-507.56083827,0.00033073,5]
[382629100,1756687839531,-500.0,0.00033073,5]
[382629102,1756687839540,-500.0,0.00033073,5]
[382629103,1756687839549,-500.0,0.00033073,5]
[382629104,1756687839559,-15356.95790779,0.00033115,2]
[382629105,1756687839569,-887.0,0.000333,2]
[382629106,1756687839579,-331.29,0.00033447,2]
[382629107,1756687839589,-2201.51101534,0.00033568,3]
[382629108,1756687839599,-45257.3475499,0.00033568,3]
[382629109,1756687839609,-101497.21661861,0.00033577,2]
[382629110,1756687839618,-1000.0,0.00033621,5]
[382629111,1756687839628,-318.59241422,0.00033621,5]
[382629112,1756687839638,-1000.0,0.00033621,5]
[382629113,1756687839647,-1000.0,0.00033621,5]
[382629114,1756687839657,-1000.0,0.00033621,5]
[382629115,1756687839666,-1000.0,0.00033621,5]
[382629116,1756687839676,-1000.0,0.00033621,5]
[382629117,1756687839686,-411.66156513,0.00033683,2]
[382629118,1756687839695,-22628.673775,0.00033773,3]
[382629119,1756687839704,-45456.35,0.00033783,2]
[382629120,1756687839714,-15356.95790779,0.00033899,2]
[382629121,1756687839724,-461.6,0.000339,30]
[382629122,1756687839734,-504.86720889,0.00034168,5]
[382629124,1756687839743,-654.83635912,0.00034168,5]
[382629126,1756687839753,-1500.0,0.00034168,5]
[382629128,1756687839763,-1500.0,0.00034168,5]
[382629130,1756687839772,-737.25351659,0.00034216,2]
[382629132,1756687839782,-411.66156508,0.00034274,2]
[382629134,1756687839791,-342.46451187,0.00034405,15]
[382629136,1756687839801,-869.0,0.0003448,2]
[382629138,1756687839811,-45257.3475499,0.00034488,3]
[382629140,1756687839820,-17922.3825416,0.00034488,3]
[382629142,1756687839830,-94915.2300752,0.00034498,2]
[382629144,1756687839840,-2401.53,0.00034505,2]
[382629146,1756687839849,-401.17,0.00034602,3]
[382629148,1756687839859,-22628.673775,0.00034602,3]
[382629150,1756687839869,-2987.06375694,0.00034602,3]
[382629152,1756687839878,-152.83,0.00034602,2]
[382629154,1756687839888,-219.44573745,0.00034602,2]
[382629156,1756687839898,-9728.51,0.00034612,2]
[382629158,1756687839907,-15356.95790779,0.00034682,2]
[382629160,1756687839917,-2000.0,0.00034716,5]
[382629162,1756687839926,-2000.0,0.00034716,5]
[382629164,1756687839936,-342.46451182,0.00034784,15]
[382629166,1756687839946,-411.66156508,0.00034864,2]
[382629168,1756687839955,-5974.12751388,0.0003489,3]
[382629170,1756687839966,-30434.65945273,0.000349,2]
[382629173,1756687839976,-22628.673775,0.00034968,3]
[382629175,1756687839989,-5974.12751388,0.00034968,3]
[382629177,1756687840000,-200.0,0.00034978,2]
[382629179,1756687840010,-28110.66,0.00034978,2]
[382629181,1756687840020,-500.0,0.00035,3]
[382629184,1756687840029,-161.19,0.00035,30]
[382629186,1756687840041,-342.46451182,0.00035163,15]
[382629188,1756687840052,-461.6,0.000352,30]
[382629190,1756687840062,-22628.673775,0.00035214,3]
[382629192,1756687840072,-5974.12751388,0.00035214,3]
[382629194,1756687840083,-30434.65945264,0.00035224,2]
[382629196,1756687840093,-2500.0,0.00035264,5]
[382629197,1756687840103,-2500.0,0.00035264,5]
[382629200,1756687840112,-152.83,0.00035339,2]
[382629201,1756687840122,-45257.3475499,0.00035349,3]
[382629204,1756687840132,-26883.5738125,0.00035349,3]
[382629206,1756687840142,-100000.0,0.00035359,7]
[382629207,1756687840152,-2201.51101534,0.00035359,7]
[382629210,1756687840163,-212.39410301,0.00035359,7]
[382629212,1756687840174,-410.07642527,0.00035359,7]
[382629214,1756687840184,-411.66156508,0.00035455,2]
[382629217,1756687840194,-15356.95790779,0.00035466,2]
[382629220,1756687840204,-22628.673775,0.00035538,3]
[382629223,1756687840214,-5974.12751388,0.00035538,3]
[382629226,1756687840223,-152.83,0.0003554,2]
[382629229,1756687840236,-342.46451182,0.00035543,15]
[382629232,1756687840246,-30434.65945264,0.00035548,2]
[382629236,1756687840256,-22628.673775,0.0003555,3]
[382629239,1756687840266,-5974.12751388,0.0003555,3]
[382629242,1756687840275,-212.39410301,0.0003556,3]
[382629245,1756687840286,-155.20951842,0.00035573,5]
[382629248,1756687840296,-2987.06375694,0.00035606,3]
[382629251,1756687840305,-541.34,0.00035616,120]
[382629254,1756687840315,-541.34,0.00035616,120]
[382629257,1756687840324,-541.34,0.00035616,120]
[382629260,1756687840334,-541.34,0.00035616,120]
[382629263,1756687840343,-541.34,0.00035616,120]
[382629266,1756687840352,-541.34,0.00035616,120]
[382629269,1756687840362,-541.34,0.00035616,120]
[382629272,1756687840371,-541.34,0.00035616,120]
[382629275,1756687840381,-541.34,0.00035616,120]
[382629278,1756687840391,-541.34,0.00035616,120]
[382629281,1756687840400,-541.34,0.00035616,120]
[382629284,1756687840409,-541.34,0.00035616,120]
[382629287,1756687840419,-541.34,0.00035616,120]
[382629290,1756687840428,-541.34,0.00035616,120]
[382629293,1756687840438,-541.34,0.00035616,120]
[382629296,1756687840449,-541.34,0.00035616,120]
[382629298,1756687840459,-541.34,0.00035616,120]
[382629300,1756687840468,-541.34,0.00035616,120]
[382629302,1756687840477,-541.34,0.00035616,120]
[382629304,1756687840489,-541.34,0.00035616,120]
[382629306,1756687840498,-541.34,0.00035616,120]
[382629308,1756687840508,-541.34,0.00035616,120]
[382629310,1756687840518,-541.34,0.00035616,120]
[382629312,1756687840527,-541.43121705,0.00035616,120]
[382629314,1756687840537,-2201.51101534,0.00035616,120]
[382629316,1756687840547,-45257.3475499,0.0003565,3]
[382629318,1756687840555,-20909.4462986,0.0003565,3]
[382629320,1756687840566,-152.83,0.0003565,2]
[382629322,1756687840575,-202.08657554,0.00035657,14]
[382629324,1756687840585,-90514.6950999,0.0003566,3]
[382629326,1756687840595,-26883.5738125,0.0003566,3]
[382629328,1756687840605,-852.0,0.0003567,2]
[382629330,1756687840614,-212.39410301,0.0003567,10]
[382629332,1756687840623,-410.07642527,0.0003567,10]
[382629334,1756687840633,-508.34596349,0.00035673,5]
[382629336,1756687840643,-534.79373472,0.00035673,5]
[382629338,1756687840653,-502.02275074,0.00035673,3]
[382629340,1756687840663,-500.0,0.00035673,5]
[382629342,1756687840672,-3000.0,0.00035812,5]
[382629344,1756687840683,-3000.0,0.00035812,5]
[382629346,1756687840693,-22628.673775,0.00035862,3]
[382629348,1756687840702,-30434.65945264,0.00035872,2]
[382629350,1756687840711,-678.22577,0.00035888,30]
[382629352,1756687840721,-450.0,0.0003589,30]
[382629354,1756687840730,-150.0,0.0003589,30]
[382629357,1756687840742,-342.46451182,0.00035922,15]
[382629359,1756687840752,-450.0,0.00036,30]
[382629361,1756687840761,-150.0,0.00036,30]
[382629363,1756687840770,-160.0,0.00036,33]
[382629365,1756687840779,-3000.0,0.00036011,2]
[382629367,1756687840789,-250.0,0.00036033,2]
[382629369,1756687840799,-411.66156508,0.00036045,2]
[382629371,1756687840808,-159.49,0.00036049,2]
[382629373,1756687840817,-200.0,0.0003608,2]
[382629374,1756687840828,-678.22577,0.00036088,30]
[382629377,1756687840838,-30434.65945264,0.00036196,2]
[382629379,1756687840848,-2000.0,0.000362,2]
[382629380,1756687840857,-1000.0,0.00036221,5]
[382629382,1756687840867,-15356.95790779,0.0003625,2]
[382629385,1756687840877,-160.0,0.0003627,2]
[382629387,1756687840887,-678.22577,0.00036288,30]
[382629389,1756687840897,-461.6,0.000363,30]
[382629391,1756687840907,-342.46451182,0.00036301,15]